lending/lending_fUSD_20250418
["ID","MTS","AMOUNT","RATE_DAILY","PERIOD"]
[358331649,1744938658824,-322.167217,0.00139726,120]
[358331650,1744938658834,-322.167217,0.00139726,120]
[358331651,1744938658844,-322.167217,0.00139726,120]
[358331652,1744938658853,-322.167217,0.00139726,120]
[358331653,1744938658862,-322.167217,0.00139726,120]
[358331654,1744938658872,-341.05405073,0.00156064,120]
[358331655,1744938658881,-500.0,0.00156064,120]
[358331656,1744938658891,-500.0,0.00156064,120]
[358331657,1744938658900,-500.0,0.00156064,120]
[358331658,1744938658909,-500.0,0.00156064,120]
[358331659,1744938658919,-500.0,0.00156064,120]
[358331660,1744938658930,-500.0,0.00156064,120]
[358331661,1744938658939,-500.0,0.00156064,120]
[358331662,1744938658949,-500.0,0.00156064,120]
[358331663,1744938658959,-500.0,0.00156064,120]
[358331664,1744938658969,-500.0,0.00156064,120]
[358331665,1744938658979,-500.0,0.00156064,120]
[358331666,1744938658988,-500.0,0.00156064,120]
[358331667,1744938658997,-500.0,0.00156064,120]
[358331668,1744938659007,-500.0,0.00156064,120]
[358331669,1744938659017,-500.0,0.00156064,120]
[358331670,1744938659026,-500.0,0.00156064,2]
[358331671,1744938659035,-500.0,0.00156064,120]
[358331672,1744938659045,-500.0,0.00156064,120]
[358331673,1744938659055,-500.0,0.00156064,120]
[358331674,1744938659065,-500.0,0.00156064,120]
[358331675,1744938659080,-500.0,0.00156064,120]
[358331676,1744938659089,-229.5993565,0.00156064,120]
[358331677,1744938659098,-516.85,0.00156064,120]
[358331678,1744938659109,-500.0,0.00156064,120]
[358331679,1744938659119,-346.51094988,0.00156064,120]
[358331680,1744938659129,-198.4,0.00156064,120]
[358331681,1744938659139,-500.0,0.00156064,120]
[358331682,1744938659151,-551.52,0.00156064,120]
[358331683,1744938659162,-112031.09484933,0.00156143,3]
[358331684,1744938659178,-47629.41396327,0.00156143,3]
[358331685,1744938659189,-1126.79000415,0.00156143,3]
[358331686,1744938659209,-14697.2091015,0.00156143,3]
[358331687,1744938659221,-24591.14918466,0.00156143,3]
[358331688,1744938659251,-513.57012031,0.00156143,3]
[358331689,1744938729099,244.77,0.00028,120]
[358331691,1744939505628,250.0,0.00017,2]
[358331692,1744939506724,300.0,0.00019,2]
[358331693,1744939530260,179.50943059,0.00019799,2]
[358331694,1744939550097,-448.80184645,0.000199,2]
[358331695,1744939626099,-2038.82636793,0.000199,2]
[358331696,1744939634817,211.15349434,0.00015,2]
[358331697,1744939637320,-1360.62318097,0.000199,2]
[358331698,1744939637340,-2453.06514633,0.000199,2]
[358331699,1744939637365,-2453.06514632,0.000199,2]
[358331700,1744939637385,-250.0,0.0001995,2]
[358331701,1744939637406,-500.0,0.00019973,2]
[358331702,1744939637428,-300.0,0.00019999,2]
[358331703,1744939637450,-239.62012343,0.00019999,2]
[358331704,1744939638044,400.0,0.000198,7]
[358331705,1744939640134,800.0,0.000199,7]
[358331706,1744939642086,-60.37987657,0.00019999,2]
[358331707,1744939642106,-370.32358905,0.00019999,2]
[358331708,1744939644091,-479.67641095,0.00019999,2]
[358331709,1744939644111,-151.77848183,0.00019999,2]
[358331710,1744939644133,-200.53466568,0.00019999,2]
[358331711,1744939647119,-56.12202848,0.00019999,2]
[358331712,1744939647140,-258.35583376,0.00019999,2]
[358331713,1744939647161,-176.9305418,0.00019999,2]
[358331714,1744939647187,-82.46382281,0.0002,2]
[358331715,1744939654080,-296.69457205,0.0002,2]
[358331716,1744939719320,476.97367199,0.0002,10]
[358331717,1744939738175,-171.71893617,0.00019973,2]
[358331718,1744939738205,-179.65968591,0.00019999,2]
[358331720,1744939738235,-180.84908363,0.00019999,2]
[358331722,1744939738266,-2391.53732807,0.0002,2]
[358331724,1744939738303,-2923.76503378,0.0002,2]
[358331725,1744939738338,-2923.76503378,0.0002,2]
[358331727,1744939738375,-2923.76503378,0.0002,2]
[358331728,1744939738434,-2923.76503378,0.0002,2]
[358331729,1744939738473,-2923.76503378,0.0002,2]
[358331730,1744939738512,-1114.84534926,0.0002,2]
[358331731,1744939761102,-391.68727747,0.0002,2]
[358331735,1744939770090,-289.40276334,0.0002,2]
[358331736,1744939831717,-304.70911262,0.000199,2]
[358331737,1744939831727,-159.70231136,0.00019973,2]
[358331738,1744939831738,-159.70236822,0.00019973,2]
[358331740,1744939831748,-159.7023707,0.00019973,2]
[358331742,1744939831757,-350.9217941,0.00019973,2]
[358331744,1744939831766,-159.9977719,0.00019973,2]
[358331745,1744939831775,-166.77120929,0.00019973,2]
[358331746,1744939831785,-500.0,0.00019973,2]
[358331747,1744939831794,-730.71221542,0.0001999,2]
[358331748,1744939831804,-890.01439603,0.00019999,2]
[358331749,1744939831814,-300.0,0.00019999,2]
[358331750,1744939831823,-300.0,0.00019999,2]
[358331751,1744939831833,-284.0,0.00019999,2]
[358331752,1744939831842,-2911.4355647,0.0002,2]
[358331753,1744939831854,-567.57478241,0.0002,2]
[358331754,1744939831868,-5494.55078513,0.0002,2]
[358331755,1744939831879,-2583.59415557,0.0002,2]
[358331756,1744939831890,-500.0,0.0002,2]
[358331757,1744939831901,-290.23984148,0.0002,2]
[358331758,1744939831912,-946.24,0.0002,2]
[358331759,1744939831923,-22609.64255139,0.0002,2]
[358331760,1744939831934,-17324.45023827,0.0002,2]
[358331761,1744939831955,-76854.26587,0.0002,2]
[358331762,1744939831967,-2943.76758798,0.0002,2]
[358331763,1744939831978,-4050.0,0.0002,2]
[358331764,1744939831989,-3031.43264769,0.0002,2]
[358331765,1744939832000,-23667.2740705,0.0002,2]
[358331766,1744939832011,-12538.09456825,0.0002,2]
[358331768,1744939832023,-569.4856778,0.0002,2]
[358331772,1744939832049,-366.84501,0.0002,2]
[358331774,1744939832060,-899.3011705,0.0002,2]
[358331787,1744939837968,-5747.74016914,0.0001999,2]
[358331788,1744939838247,-2281.87364935,0.0001999,2]
[358331789,1744939838261,-1037.35002977,0.0001999,2]
[358331790,1744939838275,-3013.51149424,0.0001999,2]
[358331791,1744939838287,-1094.84329966,0.0002,2]
[358331792,1744939838301,-398.13137541,0.0002,2]
[358331793,1744939838316,-459.61762194,0.0002,2]
[358331794,1744939838330,-6156.45188761,0.0002,2]
[358331795,1744939838343,-9186.50881033,0.0002,2]
[358331797,1744939838356,-1296.4560435,0.0002,2]
[358331799,1744939838369,-4175.80824354,0.0002,2]
[358331800,1744939838386,-20025.22853405,0.0002,2]
[358331801,1744939838399,-220256.19246846,0.0002,2]
[358331802,1744939838414,-775.44461026,0.0002,2]
[358331803,1744939838427,-5878.90200631,0.0002,2]
[358331804,1744939838440,-518473.28637844,0.0002,2]
[358331805,1744939838456,-515133.20077679,0.0002,2]
[358331806,1744939838468,-281.89135882,0.000206,2]
[358331807,1744939838480,-13869.83357093,0.000207,2]
[358331808,1744939838490,-352.62591577,0.000208,2]
[358331809,1744939838500,-350.0,0.00021,2]
[358331810,1744939838510,-420.0,0.00021881,2]
[358331811,1744939838520,-250.0,0.0002189,2]
[358331812,1744939838531,-763.19019338,0.00022,7]
[358331813,1744939838542,-250.0,0.00022,2]
[358331814,1744939838553,-818.64,0.000221,2]
[358331815,1744939838565,-587.0,0.00023941,2]
[358331816,1744939838576,-534.44963645,0.000241,2]
[358331817,1744939838586,-65510.9897897,0.000248,2]
[358331818,1744939838597,-483.70950215,0.00024873,2]
[358331819,1744939838607,-500.0,0.00024873,2]
[358331820,1744939838617,-500.0,0.00024873,2]
[358331821,1744939838632,-153.8,0.000249,2]
[358331822,1744939838648,-213111.35123,0.000249,2]
[358331823,1744939838659,-1000.52149289,0.00025,2]
[358331824,1744939838670,-1000.0,0.00025452,2]
[358331825,1744939838682,-292.0,0.00026194,2]
[358331826,1744939838693,-208.81087351,0.00027397,2]
[358331827,1744939838704,-287.84960373,0.00027397,2]
[358331828,1744939838716,-214.2660339,0.000294,5]
[358331829,1744939838727,-162.10057127,0.000294,5]
[358331830,1744939838739,-520.26138059,0.000294,5]
[358331831,1744939838750,-162.88544931,0.000294,5]
[358331832,1744939838761,-159.69875183,0.000294,5]
[358331833,1744939838772,-506.74044406,0.000294,5]
[358331834,1744939838782,-500.0,0.000294,5]
[358331835,1744939838793,-500.0,0.000294,5]
[358331836,1744939838804,-500.0,0.000294,5]
[358331837,1744939838815,-500.0,0.000294,5]
[358331838,1744939838826,-159.39041491,0.000294,5]
[358331839,1744939838836,-500.8545788,0.000294,5]
[358331840,1744939838847,-500.0,0.000294,5]
[358331841,1744939838858,-499.02863173,0.000294,5]
[358331842,1744939838869,-500.0,0.000294,5]
[358331843,1744939838880,-500.0,0.000294,5]
[358331844,1744939838891,-500.0,0.000294,5]
[358331845,1744939838902,-151.93580187,0.000294,5]
[358331846,1744939838912,-1024.78436783,0.00030352,5]
[358331847,1744939838923,-432.29999784,0.0003133,2]
[358331848,1744939838934,-1000.0,0.00034879,5]
[358331849,1744939838945,-1001.95706731,0.00034879,5]
[358331850,1744939838956,-1000.0,0.00034879,5]
[358331851,1744939838967,-738.19731123,0.00034879,5]
[358331852,1744939838978,-1000.0,0.00034879,5]
[358331853,1744939838988,-503.89381108,0.00034879,5]
[358331854,1744939839000,-1000.0,0.00034879,5]
[358331855,1744939839011,-1000.0,0.00034879,5]
[358331856,1744939839022,-1492.80226175,0.00035471,2]
[358331857,1744939839033,-644.67624946,0.00036,2]
[358331858,1744939839044,-166.05709274,0.000384,33]
[358331859,1744939839055,-607.04552498,0.000388,2]
[358331860,1744939839066,-13869.83357088,0.000395,2]
[358331861,1744939839077,-500.0,0.00039726,15]
[358331862,1744939839088,-500.0,0.00039726,15]
[358331863,1744939839099,-500.0,0.00039726,15]
[358331864,1744939839110,-500.0,0.00039726,15]
[358331865,1744939839120,-500.0,0.00039726,15]
[358331866,1744939839131,-500.0,0.00039726,15]
[358331867,1744939839142,-500.0,0.00039726,15]
[358331868,1744939839152,-500.0,0.00039726,15]
[358331869,1744939839163,-500.0,0.00039726,15]
[358331870,1744939839174,-500.0,0.00039726,15]
[358331871,1744939839185,-500.0,0.00039726,15]
[358331872,1744939839196,-500.0,0.00039726,15]
[358331873,1744939839207,-500.0,0.00039726,15]
[358331874,1744939839218,-500.0,0.00039726,15]
[358331875,1744939839229,-500.0,0.00039726,15]
[358331876,1744939839242,-500.0,0.00039726,15]
[358331877,1744939839252,-500.0,0.00039726,15]
[358331878,1744939839264,-628.13736255,0.00039726,15]
[358331879,1744939839274,-604.4797596,0.0004,30]
[358331880,1744939839289,-250.0,0.00041141,2]
[358331881,1744939839302,-150.0,0.00042,120]
[358331882,1744939839313,-237.88,0.00042707,2]
[358331883,1744939839324,-150.99,0.00042707,30]
[358331884,1744939839335,-7931.14,0.00042707,2]
[358331885,1744939839347,-2276.98416779,0.0004321,2]
[358331886,1744939839358,-174.79111751,0.00043836,120]
[358331887,1744939839369,-499.2086,0.00043888,30]
[358331888,1744939839380,-199.82252734,0.00044898,10]
[358331889,1744939839391,-1500.0,0.00044898,10]
[358331890,1744939839403,-994.50273241,0.00044898,10]
[358331891,1744939839417,-1529.93492696,0.00044898,10]
[358331892,1744939839428,-502.7758457,0.00044898,10]
[358331893,1744939839439,-151.0,0.00045,120]
[358331894,1744939839453,-190.97,0.00047599,120]
[358331895,1744939839473,-444.0,0.0005,120]
[358331896,1744939839487,-189.0,0.0005,120]
[358331897,1744939839497,-1007.02271262,0.0005,120]
[358331898,1744939839508,-818.64,0.0005,14]
[358331899,1744939839519,-281.89135876,0.000505,28]
[358331900,1744939839529,-818.61384685,0.00051029,23]
[358331901,1744939839540,-1200.0,0.000519,18]
[358331902,1744939839551,-4053.07,0.00051999,120]
[358331903,1744939839562,-444.0,0.00052,120]
[358331904,1744939839574,-189.0,0.00052,120]
[358331905,1744939839585,-151.0,0.00052,120]
[358331906,1744939839595,-151.0,0.00052,120]
[358331907,1744939839606,-300.0,0.00052028,30]
[358331908,1744939839617,-500.0,0.00052028,30]
[358331909,1744939839628,-300.0,0.00052028,30]
[358331910,1744939839649,-300.0,0.00052028,30]
[358331911,1744939839661,-500.0,0.00052028,30]
[358331913,1744939839883,-273.10497182,0.00052028,30]
[358331914,1744939839909,-248.049999,0.00052029,30]
[358331915,1744939839925,-219711.27189878,0.00052029,60]
[358331916,1744939839939,-176594.78185581,0.00052029,60]
[358331917,1744939839949,-1024.02362939,0.00052029,120]
[358331918,1744939839959,-859.87897855,0.00052029,2]
[358331919,1744939839970,-300.0,0.00052041,30]
[358331920,1744939839980,-500.0,0.00052041,30]
[358331921,1744939839990,-300.0,0.00052041,30]
[358331922,1744939840000,-500.0,0.00052041,30]
[358331923,1744939840010,-300.0,0.00052041,30]
[358331924,1744939840019,-159.70237665,0.00052073,10]
[358331925,1744939840029,-500.0,0.00052073,10]
[358331926,1744939840039,-500.11082529,0.00052073,10]
[358331927,1744939840048,-299.03713602,0.00052073,10]
[358331928,1744939840059,-1811.4894389,0.000525,120]
[358331929,1744939840068,-151.0,0.00053,100]
[358331930,1744939840078,-444.0,0.00054,120]
[358331931,1744939840088,-189.0,0.00054,120]
[358331932,1744939840097,-169.0,0.000547,120]
[358331933,1744939840106,-150.64254778,0.00054795,120]
[358331934,1744939840116,-230.50527611,0.00055,30]
[358331935,1744939840126,-204.95,0.000552,54]
[358331936,1744939840135,-204.95,0.000552,54]
[358331937,1744939840145,-204.95,0.000552,54]
[358331938,1744939840155,-204.95,0.000552,54]
[358331939,1744939840165,-204.95,0.000552,54]
[358331940,1744939840174,-204.95,0.000552,54]
[358331941,1744939840184,-204.95,0.000552,54]
[358331942,1744939840193,-204.95,0.000552,54]
[358331943,1744939840203,-204.95,0.000552,54]
[358331944,1744939840212,-204.95,0.000552,54]
[358331945,1744939840222,-204.95,0.000552,54]
[358331946,1744939840231,-204.95,0.000552,54]
[358331947,1744939840241,-444.0,0.00056,120]
[358331948,1744939840251,-189.0,0.00056,120]
[358331949,1744939840261,-580.0,0.00056,14]
[358331950,1744939840270,-1499.999999,0.000575,120]
[358331951,1744939840281,-500.55165546,0.00057552,14]
[358331952,1744939840290,-1006.69330911,0.00057872,15]
[358331953,1744939840300,-444.0,0.00058,120]
[358331954,1744939840311,-189.0,0.00058,120]
[358331955,1744939840320,-13869.83357088,0.000583,15]
[358331956,1744939840332,-250.62090772,0.000587,120]
[358331957,1744939840343,-572.07281325,0.0005909,2]
[358331958,1744939840352,-151.0,0.00059589,120]
[358331959,1744939840361,-166.84,0.00059945,120]
[358331960,1744939840371,-444.0,0.0006,120]
[358331961,1744939840381,-352.47480303,0.0006,30]
[358331962,1744939840390,-189.0,0.0006,120]
[358331963,1744939840400,-164.86042333,0.0006,120]
[358331964,1744939840413,-799.73625628,0.0006,120]
[358331965,1744939840423,-239.33111293,0.0006,30]
[358331966,1744939840432,-1093.94,0.0006,120]
[358331967,1744939840442,-1013.82485559,0.0006,2]
[358331968,1744939840453,-499.85649999,0.0006,120]
[358331969,1744939840463,-169.0,0.000614,120]
[358331970,1744939840472,-210.39,0.00061557,30]
[358331971,1744939840483,-1100.0,0.0006178,120]
[358331972,1744939840494,-946.3320087,0.000618,120]
[358331973,1744939840506,-444.0,0.00062,120]
[358331974,1744939840516,-189.0,0.00062,120]
[358331975,1744939840526,-958.04835011,0.00062,120]
[358331976,1744939840536,-2285.59550572,0.00062,120]
[358331977,1744939840545,-818.64,0.00062,60]
[358331978,1744939840554,-1100.0,0.00062054,120]
[358331979,1744939840564,-1100.0,0.00062328,120]
[358331980,1744939840573,-2000.0,0.0006242,4]
[358331981,1744939840583,-220.65,0.00062435,30]
[358331982,1744939840594,-895.9,0.00062451,30]
[358331983,1744939840605,-349.81,0.00062451,30]
[358331984,1744939840615,-1347.02,0.00062451,30]
[358331985,1744939840625,-160.65,0.00062451,30]
[358331986,1744939840634,-150.0,0.00062451,30]
[358331987,1744939840643,-1100.0,0.00062602,120]
[358331988,1744939840651,-1100.0,0.0006315,120]
[358331989,1744939840660,-3622.11026895,0.00063387,2]
[358331990,1744939840669,-1100.0,0.00063698,120]
[358331991,1744939840679,-444.0,0.00064,120]
[358331992,1744939840688,-189.0,0.00064,120]
[358331993,1744939840697,-1100.0,0.00064246,120]
[358331994,1744939840707,-1100.0,0.00064794,120]
[358331995,1744939840716,-500.0,0.00064845,120]
[358331996,1744939840725,-1719.99034562,0.000649,120]
[358331997,1744939840735,-2999.999999,0.00065,120]
[358331998,1744939840745,-1100.0,0.00065342,120]
[358331999,1744939840757,-1100.0,0.0006589,120]
[358332000,1744939840769,-225.66396252,0.00066,120]
[358332001,1744939840778,-444.0,0.00066,120]
[358332002,1744939840787,-189.0,0.00066,120]
[358332003,1744939840796,-1100.0,0.00066438,120]
[358332004,1744939840806,-1100.0,0.00066986,120]
[358332005,1744939840815,-151.0,0.00067178,120]
[358332006,1744939840824,-912.47258442,0.00067534,120]
[358332007,1744939840834,-818.64,0.000676,60]
[358332008,1744939840843,-444.0,0.00068,120]
[358332009,1744939840852,-487.56087047,0.00068,120]
[358332010,1744939840861,-189.0,0.00068,120]
[358332011,1744939840871,-500.0,0.00068002,120]
[358332012,1744939840880,-169.0,0.000681,120]
[358332013,1744939840890,-500.0,0.00068493,120]
[358332014,1744939840900,-500.0,0.00068493,120]
[358332015,1744939840909,-500.0,0.00068493,120]
[358332016,1744939840919,-616.66859917,0.00068493,120]
[358332017,1744939840928,-500.0,0.00068493,120]
[358332018,1744939840937,-500.0,0.00068493,120]
[358332019,1744939840946,-500.0,0.00068493,120]
[358332020,1744939840955,-500.0,0.00068493,120]
[358332021,1744939840964,-500.0,0.00068493,120]
[358332022,1744939840973,-300.0,0.00068999,60]
[358332023,1744939840982,-500.0,0.00068999,90]
[358332024,1744939840992,-411.37299284,0.00068999,60]
[358332025,1744939841001,-500.0,0.00068999,90]
[358332026,1744939841011,-300.0,0.00068999,60]
[358332027,1744939841020,-300.0,0.00068999,60]
[358332028,1744939841029,-500.0,0.00068999,90]
[358332029,1744939841039,-238.19,0.00069,60]
[358332030,1744939841048,-42016.10736921,0.00069,2]
[358332031,1744939841057,-300.0,0.00070149,60]
[358332032,1744939841066,-500.0,0.00070149,90]
[358332033,1744939841076,-500.0,0.00070149,90]
[358332034,1744939841086,-300.0,0.00070149,60]
[358332035,1744939841095,-300.0,0.00070149,60]
[358332036,1744939841105,-582.22644232,0.00070149,90]
[358332037,1744939841114,-37951.41473329,0.0007015,2]
[358332038,1744939841152,-364.04259866,0.0007015,2]
[358332039,1744939841164,-624.1476786,0.0007015,2]
[358332040,1744939841333,-229.98,0.00030984,2]
[358332041,1744939841343,-292.93188455,0.0007015,2]
[358332042,1744939841355,-2748.98837663,0.0007015,2]
[358332043,1744939841365,-413.80252106,0.00071,120]
[358332044,1744939841373,-669.46954742,0.000735,120]
[358332045,1744939841384,-500.0,0.00073932,120]
[358332046,1744939841394,-800.0,0.00074219,120]
[358332047,1744939841403,-151.0,0.00074767,120]
[358332048,1744939841415,-1500.59256072,0.000749,120]
[358332049,1744939841424,-200.0,0.00075,7]
[358332050,1744939841434,-200.0,0.00075,2]
[358332051,1744939841443,-833.77424222,0.00075851,119]
[358332052,1744939841454,-200.0,0.00075878,119]
[358332053,1744939841463,-833.77424222,0.00075908,119]
[358332054,1744939841473,-200.0,0.00075916,119]
[358332055,1744939841485,-200.0,0.00075957,119]
[358332056,1744939841495,-833.77424222,0.00075958,119]
[358332057,1744939841504,-600.0,0.00076594,120]
[358332058,1744939841513,-1740.61757286,0.000771,15]
[358332059,1744939841989,-12129.21599802,0.000771,15]
[358332060,1744939841999,-1040.38803632,0.00078,120]
[358332061,1744939842008,-820.23355991,0.000788,120]
[358332062,1744939842018,-294.59481922,0.00078999,120]
[358332063,1744939842027,-294.59481922,0.00078999,120]
[358332064,1744939842035,-300.0,0.00078999,60]
[358332065,1744939842045,-300.0,0.00078999,60]
[358332066,1744939842054,-14452.79596475,0.00079,120]
[358332067,1744939842066,-13818.01396941,0.00079,120]
[358332068,1744939842075,-294.59481922,0.00079699,120]
[358332069,1744939842085,-3283.75540042,0.000797,120]
[358332070,1744939842095,-1723.25468971,0.00079885,120]
[358332071,1744939842105,-300.0,0.00079999,60]
[358332072,1744939842114,-238.5111399,0.00079999,60]
[358332073,1744939842124,-1000.000001,0.00079999,120]
[358332074,1744939842134,-294.59481922,0.00079999,120]
[358332075,1744939842144,-294.59481922,0.00079999,120]
[358332076,1744939842154,-294.59481922,0.00079999,120]
[358332077,1744939842163,-294.59481922,0.00079999,120]
[358332078,1744939842173,-294.59481922,0.00079999,120]
[358332079,1744939842183,-294.59481922,0.00079999,120]
[358332080,1744939842193,-294.59481922,0.00079999,120]
[358332081,1744939842202,-294.59481922,0.00079999,120]
[358332082,1744939842212,-294.59481922,0.00079999,120]
[358332083,1744939842222,-294.59481922,0.00079999,120]
[358332084,1744939842232,-294.59481922,0.00079999,120]
[358332085,1744939842242,-294.59481922,0.00079999,120]
[358332086,1744939842252,-294.59481922,0.00079999,120]
[358332087,1744939842261,-294.59481922,0.00079999,120]
[358332088,1744939842270,-294.59481922,0.00079999,120]
[358332089,1744939842280,-294.59481922,0.00079999,120]
[358332090,1744939842290,-294.59481922,0.00079999,120]
[358332091,1744939842300,-294.59481922,0.00079999,120]
[358332092,1744939842310,-294.59481922,0.00079999,120]
[358332093,1744939842319,-294.59481922,0.00079999,120]
[358332094,1744939842329,-294.59481922,0.00079999,120]
[358332095,1744939842339,-200.0,0.0008,8]
[358332096,1744939842349,-15418.43743766,0.0008,30]
[358332097,1744939842359,-195376.68371825,0.0008,2]
[358332098,1744939842368,-929.3979205,0.0008,120]
[358332099,1744939842378,-8485.04,0.0008,60]
[358332100,1744939842389,-281.89135876,0.000804,28]
[358332101,1744939842399,-1712.54832801,0.0008077,120]
[358332102,1744939842413,-1000.0,0.0008087,120]
[358332103,1744939842422,-294.59481922,0.00080969,120]
[358332104,1744939842432,-1000.0,0.0008097,120]
[358332105,1744939842442,-1615.82444683,0.0008137,30]
[358332106,1744939842453,-900.0,0.00081771,120]
[358332107,1744939842463,-2999.999999,0.00082,120]
[358332108,1744939842473,-500.0,0.00082192,120]
[358332109,1744939842482,-500.0,0.00082192,120]
[358332110,1744939842494,-624.16264507,0.00082192,120]
[358332111,1744939842504,-151.0,0.00082356,120]
[358332112,1744939842513,-150.0,0.00082427,30]
[358332113,1744939842522,-160.0,0.00085167,30]
[358332114,1744939842532,-500.0,0.00086079,120]
[358332115,1744939842541,-300.0,0.000865,120]
[358332116,1744939842551,-300.0,0.000865,120]
[358332117,1744939842561,-300.0,0.000865,120]
[358332118,1744939842571,-300.0,0.000865,120]
[358332119,1744939842581,-301.59002767,0.000865,120]
[358332120,1744939842591,-170.0,0.00087907,30]
[358332121,1744939842600,-600.0,0.00088763,120]
[358332122,1744939842609,-8485.04,0.000888,60]
[358332123,1744939842619,-166.84,0.00089917,120]
[358332124,1744939842629,-329.0,0.00089945,120]
[358332125,1744939842640,-301.53,0.0009,2]
[358332126,1744939842650,-180.0,0.00090646,30]
[358332127,1744939842659,-294.59481922,0.00090937,120]
[358332128,1744939842679,-190.0,0.00093386,30]
[358332129,1744939842690,-267.98007243,0.0009429,7]
[358332130,1744939842700,-300.0,0.00094999,60]
[358332131,1744939842709,-294.59481922,0.00094999,120]
[358332132,1744939842719,-294.59481922,0.00094999,120]
[358332133,1744939842729,-294.59481922,0.00094999,120]
[358332134,1744939842739,-294.59481922,0.00094999,120]
[358332135,1744939842751,-294.59481922,0.00094999,120]
[358332136,1744939842760,-294.59481922,0.00094999,120]
[358332137,1744939842770,-294.59481922,0.00094999,120]
[358332138,1744939842780,-294.59481922,0.00094999,120]
[358332139,1744939842790,-294.59481922,0.00094999,120]
[358332140,1744939842800,-294.59481922,0.00094999,120]
[358332141,1744939842810,-294.59481922,0.00094999,120]
[358332142,1744939842819,-294.59481922,0.00094999,120]
[358332143,1744939842829,-123797.08538271,0.00095,120]
[358332144,1744939842838,-13869.83357088,0.000959,15]
[358332145,1744939842848,-200.0,0.00096126,30]
[358332146,1744939842858,-600.0,0.00097944,120]
[358332147,1744939842867,-210.0,0.00098866,30]
[358332148,1744939842877,-288.65993044,0.0009999,120]
[358332149,1744939842887,-201.4070758,0.001,120]
[358332150,1744939842896,-1000.0,0.001,120]
[358332151,1744939842906,-1000.0,0.001,120]
[358332152,1744939842915,-1000.0,0.001,120]
[358332153,1744939842925,-1000.0,0.001,120]
[358332154,1744939842935,-155.0,0.001,120]
[358332155,1744939842944,-155.70539169,0.001,120]
[358332156,1744939842954,-151.0,0.001,120]
[358332157,1744939842964,-589.18963834,0.00101457,120]
[358332158,1744939842974,-500.0,0.00101458,120]
[358332159,1744939842984,-220.0,0.00101605,30]
[358332160,1744939842995,-800.0,0.00101614,120]
[358332161,1744939843005,-1000.0,0.00102,120]
[358332162,1744939843015,-1000.0,0.00102,120]
[358332163,1744939843024,-1000.0,0.00102,120]
[358332164,1744939843034,-151.0,0.00102097,101]
[358332165,1744939843044,-1000.0,0.00104,120]
[358332166,1744939843054,-1000.0,0.00104,120]
[358332167,1744939843064,-1000.0,0.00104,120]
[358332168,1744939843074,-230.0,0.00104345,30]
[358332169,1744939843084,-150.0,0.001044,2]
[358332170,1744939843094,-8485.04,0.00105,60]
[358332171,1744939843103,-1000.0,0.00106,120]
[358332172,1744939843113,-1000.0,0.00106,120]
[358332173,1744939843123,-240.0,0.00107085,30]
[358332174,1744939843132,-1000.0,0.00108,120]
[358332176,1744939843306,-1000.0,0.00108,120]
[358332177,1744939843321,-385.08,0.001096,7]
[358332178,1744939843332,-390.78226518,0.00109825,30]
[358332179,1744939843342,-1474.981,0.0011,120]
[358332180,1744939843352,-288.627,0.0011,120]